fUST/lending_fUST_20260208
["ID","MTS","AMOUNT","RATE_DAILY","PERIOD"]
[404752251,1770508261239,-250.0,0.00049,120]
[404752252,1770508261249,-1000.0,0.00049,120]
[404752253,1770508261258,-873.0,0.00049,120]
[404752254,1770508261268,-1500.0,0.00049,120]
[404752255,1770508261278,-15000.0,0.0004918,7]
[404752256,1770508261288,-447912.95,0.000492,10]
[404752257,1770508261297,-73140.87,0.000492,10]
[404752258,1770508261307,-952.83756776,0.00049315,120]
[404752259,1770508261317,-1000.0,0.00049315,120]
[404752260,1770508261329,-2231.42,0.00049369,120]
[404752261,1770508261339,-1000.0,0.000495,120]
[404752262,1770508261348,-1000.0,0.000498,7]
[404752263,1770508261358,-1665.35942648,0.000498,120]
[404752264,1770508261368,-10000.0,0.00049865,120]
[404752265,1770508261379,-619.73459446,0.0004987,120]
[404752266,1770508261388,-1000.0,0.0005,120]
[404752267,1770508261398,-480.44269768,0.0005,120]
[404752268,1770508261411,-705.94335388,0.0005,120]
[404752269,1770508261422,-495.47206185,0.0005,30]
[404752270,1770508261431,-400.0,0.0005,120]
[404752271,1770508261440,-176.66208908,0.0005,90]
[404752272,1770508261449,-495.97914842,0.0005,120]
[404752273,1770508261459,-81316.64949654,0.0005,120]
[404752274,1770508261468,-21736.0,0.0005,20]
[404752275,1770508261478,-310.0,0.0005,120]
[404752276,1770508261487,-486.238915,0.0005,120]
[404752277,1770508261497,-100000.76906503,0.0005,120]
[404752278,1770508261506,-4106.0,0.0005,120]
[404752279,1770508261515,-495.0,0.0005,120]
[404752280,1770508261524,-250.77931686,0.0005,120]
[404752281,1770508261534,-204.52363688,0.0005,120]
[404752282,1770508261543,-160.0,0.0005,2]
[404752283,1770508261552,-31040.03426826,0.0005,120]
[404752284,1770508261561,-401.73262825,0.0005,120]
[404752285,1770508261571,-335060.03944498,0.0005,2]
[404752286,1770508261580,-208877.00989258,0.0005,2]
[404752287,1770508261589,-13966.90063255,0.0005,2]
[404752288,1770508261599,-5041835.20517029,0.0005,120]
[404752289,1770508261608,-1000.0,0.0005,30]
[404752290,1770508261618,-152.0,0.0005,120]
[404752291,1770508261627,-275.1,0.0005,30]
[404752292,1770508261636,-15858.31,0.0005,14]
[404752293,1770508261649,-793.03,0.00050136,30]
[404752294,1770508261659,-3000.0,0.000502,120]
[404752295,1770508261668,-1000.0,0.000505,120]
[404752296,1770508261677,-7809.98,0.00050558,30]
[404752297,1770508261687,-558.73,0.00050566,120]
[404752298,1770508261696,-152.0,0.000508,120]
[404752299,1770508261708,-793.03,0.00050821,33]
[404752300,1770508261720,-1000.0,0.000509,60]
[404752301,1770508261732,-1000.0,0.000509,60]
[404752302,1770508261741,-543.9444483,0.00051,120]
[404752303,1770508261751,-1000.0,0.00051,120]
[404752304,1770508261760,-2209.15,0.00051,14]
[404752305,1770508261770,-3000.0,0.00051,85]
[404752306,1770508261779,-3000.0,0.0005101,85]
[404752307,1770508261788,-3000.0,0.0005102,85]
[404752308,1770508261797,-3000.0,0.0005103,85]
[404752309,1770508261807,-3000.0,0.0005104,85]
[404752310,1770508261816,-3000.0,0.0005105,85]
[404752311,1770508261825,-3000.0,0.0005106,85]
[404752312,1770508261835,-3910.526054,0.0005107,85]
[404752313,1770508261844,-1000.0,0.000512,60]
[404752314,1770508261853,-1000.0,0.000512,60]
[404752315,1770508261862,-3000.0,0.000512,120]
[404752316,1770508261872,-200.0,0.000514,120]
[404752317,1770508261881,-3000.0,0.000515,120]
[404752318,1770508261891,-1000.0,0.000515,120]
[404752319,1770508261900,-438.11953546,0.000515,120]
[404752320,1770508261911,-1000.0,0.000515,60]
[404752321,1770508261920,-1000.0,0.000515,60]
[404752322,1770508261930,-793.03,0.00051506,36]
[404752323,1770508261939,-152.0,0.000516,120]
[404752324,1770508261950,-86061.93397476,0.00051739,120]
[404752325,1770508261959,-1000.0,0.000518,60]
[404752326,1770508261968,-1000.0,0.000518,60]
[404752327,1770508261979,-50000.0,0.000519,120]
[404752328,1770508261989,-2027000.0,0.00052,14]
[404752329,1770508262000,-1000.0,0.00052,120]
[404752330,1770508262011,-179215.6473678,0.00052,120]
[404752331,1770508262022,-400.0,0.00052,120]
[404752332,1770508262032,-1018.3507015,0.00052,120]
[404752333,1770508262042,-16438.2455229,0.00052,120]
[404752334,1770508262053,-703.0,0.00052055,120]
[404752335,1770508262144,-1000.0,0.000521,60]
[404752336,1770508262154,-793.03,0.00052191,39]
[404752337,1770508262164,-14179.0,0.000522,90]
[404752338,1770508262174,-3347.13,0.00052208,120]
[404752339,1770508262183,-1000.0,0.000524,60]
[404752340,1770508262193,-1000.0,0.000524,60]
[404752341,1770508262203,-1000.0,0.000525,120]
[404752342,1770508262212,-3000.0,0.000525,120]
[404752343,1770508262222,-152.0,0.000525,120]
[404752344,1770508262232,-1000.0,0.000527,60]
[404752345,1770508262243,-793.03,0.00052876,42]
[404752346,1770508262254,-33346.41219545,0.000529,30]
[404752347,1770508262265,-558.73,0.00052959,120]
[404752348,1770508262277,-1000.0,0.00053,120]
[404752349,1770508262288,-1000.0,0.00053,120]
[404752350,1770508262297,-1000.0,0.00053,60]
[404752351,1770508262307,-1000.0,0.00053,60]
[404752352,1770508262317,-47338.47831777,0.00053,120]
[404752353,1770508262327,-101689.92686573,0.00053013,120]
[404752354,1770508262336,-1835.21429012,0.00053013,120]
[404752355,1770508262347,-10468.1601708,0.0005322,2]
[404752356,1770508262357,-1000.0,0.000533,60]
[404752357,1770508262366,-152.0,0.000533,120]
[404752358,1770508262376,-10413.31,0.00053308,30]
[404752359,1770508262385,-7740.68877052,0.00053333,120]
[404752360,1770508262395,-150.0,0.00053425,120]
[404752361,1770508262404,-156.17377465,0.00053425,120]
[404752362,1770508262415,-222.61514077,0.00053425,120]
[404752363,1770508262424,-500.0,0.00053425,120]
[404752364,1770508262433,-150.0,0.00053425,120]
[404752365,1770508262442,-500.0,0.00053425,120]
[404752366,1770508262451,-470.89923487,0.00053425,120]
[404752367,1770508262460,-500.0,0.00053425,120]
[404752368,1770508262470,-261.91274595,0.00053425,120]
[404752369,1770508262479,-500.0,0.00053425,120]
[404752370,1770508262488,-150.0,0.00053425,120]
[404752371,1770508262497,-150.0,0.00053425,120]
[404752372,1770508262507,-150.0,0.00053425,120]
[404752373,1770508262516,-500.0,0.00053425,120]
[404752374,1770508262526,-150.0,0.00053425,120]
[404752375,1770508262535,-500.0,0.00053425,120]
[404752376,1770508262545,-150.0,0.00053425,120]
[404752377,1770508262555,-180.57746731,0.00053425,120]
[404752378,1770508262564,-258.36884435,0.00053425,120]
[404752379,1770508262573,-150.0,0.00053425,120]
[404752380,1770508262583,-203.69687208,0.00053425,120]
[404752381,1770508262592,-228.53029138,0.00053425,120]
[404752382,1770508262602,-150.0,0.00053425,120]
[404752383,1770508262612,-150.0,0.00053425,120]
[404752384,1770508262621,-150.97141032,0.00053425,120]
[404752385,1770508262631,-277.55498283,0.00053425,120]
[404752386,1770508262642,-500.0,0.00053425,120]
[404752387,1770508262652,-500.0,0.00053425,120]
[404752388,1770508262663,-500.0,0.00053425,120]
[404752389,1770508262672,-500.0,0.00053425,120]
[404752390,1770508262683,-309.76975073,0.00053425,120]
[404752391,1770508262692,-500.0,0.00053425,120]
[404752392,1770508262702,-500.0,0.00053425,120]
[404752393,1770508262712,-500.0,0.00053425,120]
[404752394,1770508262722,-500.0,0.00053425,120]
[404752395,1770508262732,-500.0,0.00053425,120]
[404752396,1770508262741,-500.0,0.00053425,120]
[404752397,1770508262751,-500.0,0.00053425,120]
[404752398,1770508262760,-500.0,0.00053425,120]
[404752399,1770508262769,-500.0,0.00053425,120]
[404752400,1770508262779,-408.07139255,0.00053425,120]
[404752401,1770508262788,-500.0,0.00053425,120]
[404752402,1770508262797,-500.0,0.00053425,120]
[404752403,1770508262807,-531.27644002,0.00053425,120]
[404752404,1770508262815,-500.0,0.00053425,120]
[404752405,1770508262824,-500.0,0.00053425,120]
[404752406,1770508262833,-500.0,0.00053425,120]
[404752407,1770508262843,-404.77386213,0.00053425,120]
[404752408,1770508262852,-500.0,0.00053425,81]
[404752409,1770508262863,-150.0,0.00053425,120]
[404752410,1770508262873,-500.0,0.00053425,81]
[404752411,1770508262883,-279.52109639,0.00053425,81]
[404752412,1770508262894,-250.9368634,0.00053425,120]
[404752413,1770508262904,-432.0,0.00053425,120]
[404752414,1770508262915,-432.0,0.00053425,120]
[404752415,1770508262924,-500.0,0.00053425,120]
[404752416,1770508262934,-432.0,0.00053425,120]
[404752417,1770508262944,-500.0,0.00053425,120]
[404752418,1770508262955,-432.0,0.00053425,120]
[404752419,1770508262964,-500.0,0.00053425,120]
[404752420,1770508262975,-432.0,0.00053425,120]
[404752421,1770508262986,-432.0,0.00053425,120]
[404752422,1770508262996,-500.0,0.00053425,120]
[404752423,1770508263006,-500.0,0.00053425,120]
[404752424,1770508263016,-432.0,0.00053425,120]
[404752425,1770508263026,-500.0,0.00053425,120]
[404752426,1770508263035,-432.0,0.00053425,120]
[404752427,1770508263045,-522.97864683,0.00053425,120]
[404752428,1770508263055,-432.0,0.00053425,120]
[404752429,1770508263064,-432.0,0.00053425,120]
[404752430,1770508263073,-432.0,0.00053425,120]
[404752431,1770508263082,-432.0,0.00053425,120]
[404752432,1770508263092,-432.0,0.00053425,120]
[404752433,1770508263102,-432.0,0.00053425,120]
[404752434,1770508263111,-432.0,0.00053425,120]
[404752435,1770508263121,-432.0,0.00053425,120]
[404752436,1770508263130,-432.0,0.00053425,120]
[404752437,1770508263140,-150.0,0.00053425,120]
[404752438,1770508263150,-150.0,0.00053425,120]
[404752439,1770508263160,-150.0,0.00053425,120]
[404752440,1770508263178,-432.0,0.00053425,120]
[404752441,1770508263187,-150.0,0.00053425,120]
[404752442,1770508263197,-258.64737331,0.00053425,120]
[404752443,1770508263207,-432.0,0.00053425,120]
[404752444,1770508263218,-432.0,0.00053425,120]
[404752445,1770508263227,-432.0,0.00053425,120]
[404752446,1770508263238,-432.0,0.00053425,120]
[404752447,1770508263246,-432.0,0.00053425,120]
[404752448,1770508263255,-444.0,0.00053425,120]
[404752449,1770508263264,-777.0,0.00053425,120]
[404752450,1770508263273,-777.0,0.00053425,120]
[404752451,1770508263282,-777.0,0.00053425,120]
[404752452,1770508263291,-500.0,0.00053425,120]
[404752453,1770508263302,-777.0,0.00053425,120]
[404752454,1770508263311,-500.0,0.00053425,120]
[404752455,1770508263321,-777.0,0.00053425,120]
[404752456,1770508263332,-500.0,0.00053425,120]
[404752457,1770508263343,-500.0,0.00053425,120]
[404752458,1770508263354,-777.0,0.00053425,120]
[404752459,1770508263363,-500.0,0.00053425,120]
[404752460,1770508263375,-500.0,0.00053425,120]
[404752461,1770508263385,-777.0,0.00053425,120]
[404752462,1770508263394,-431.5123974,0.00053425,120]
[404752463,1770508263404,-500.0,0.00053425,120]
[404752464,1770508263413,-777.0,0.00053425,120]
[404752465,1770508263423,-500.0,0.00053425,120]
[404752466,1770508263432,-777.0,0.00053425,120]
[404752467,1770508263442,-500.0,0.00053425,120]
[404752468,1770508263451,-500.0,0.00053425,120]
[404752469,1770508263460,-777.0,0.00053425,120]
[404752470,1770508263469,-500.0,0.00053425,120]
[404752471,1770508263478,-500.0,0.00053425,120]
[404752472,1770508263488,-777.0,0.00053425,120]
[404752473,1770508263497,-500.0,0.00053425,120]
[404752474,1770508263506,-534.32097487,0.00053425,120]
[404752475,1770508263516,-777.0,0.00053425,120]
[404752476,1770508263525,-180.29145267,0.00053425,120]
[404752477,1770508263535,-777.0,0.00053425,120]
[404752478,1770508263620,-777.0,0.00053425,120]
[404752479,1770508263630,-777.0,0.00053425,120]
[404752480,1770508263645,-777.0,0.00053425,120]
[404752481,1770508263656,-777.0,0.00053425,120]
[404752482,1770508263667,-777.0,0.00053425,120]
[404752483,1770508263676,-777.0,0.00053425,120]
[404752484,1770508263688,-777.0,0.00053425,120]
[404752485,1770508263697,-777.0,0.00053425,120]
[404752486,1770508263707,-777.0,0.00053425,120]
[404752487,1770508263720,-777.0,0.00053425,120]
[404752488,1770508263729,-777.61112184,0.00053425,120]
[404752489,1770508263739,-150.0,0.00053425,120]
[404752490,1770508263751,-150.0,0.00053425,120]
[404752491,1770508263763,-150.0,0.00053425,120]
[404752492,1770508263773,-150.0,0.00053425,120]
[404752493,1770508263782,-150.0,0.00053425,120]
[404752494,1770508263792,-150.0,0.00053425,120]
[404752495,1770508263801,-253.76937767,0.00053425,120]
[404752496,1770508263811,-500.0,0.00053425,120]
[404752497,1770508263820,-150.0,0.00053425,120]
[404752498,1770508263830,-500.0,0.00053425,120]
[404752499,1770508263842,-157.89642388,0.00053425,120]
[404752500,1770508263852,-150.0,0.00053425,2]
[404752501,1770508263864,-150.0,0.00053425,120]
[404752502,1770508263874,-500.0,0.00053425,120]
[404752503,1770508263883,-293.1455343,0.00053425,120]
[404752504,1770508263893,-500.0,0.00053425,120]
[404752505,1770508263903,-500.0,0.00053425,120]
[404752506,1770508263913,-515.21427368,0.00053425,120]
[404752507,1770508263923,-500.0,0.00053425,120]
[404752508,1770508263933,-500.0,0.00053425,120]
[404752509,1770508263943,-500.0,0.00053425,120]
[404752510,1770508263952,-150.0,0.00053425,120]
[404752511,1770508263962,-500.0,0.00053425,120]
[404752512,1770508263972,-500.0,0.00053425,120]
[404752513,1770508263982,-157.50997584,0.00053425,120]
[404752514,1770508263992,-500.0,0.00053425,120]
[404752515,1770508264003,-408.18886483,0.00053425,120]
[404752516,1770508264013,-217.84253356,0.00053425,120]
[404752517,1770508264023,-302.38300406,0.00053451,60]
[404752518,1770508264032,-20693.3296293,0.00053495,120]
[404752519,1770508264041,-1000.0,0.000535,120]
[404752520,1770508264051,-182340.23871869,0.000535,110]
[404752521,1770508264061,-53134.84400529,0.000535,120]
[404752523,1770508920029,-500.0,0.00020785,2]
[404752524,1770508920059,-150.0,0.00020843,2]
[404752525,1770508920090,-147.19994844,0.00020901,2]
[404752526,1770508920103,-358.33825256,0.00020901,2]
[404752527,1770508949292,-177.0,0.00022843,2]
[404752528,1770508966227,-620.19994844,0.00023739,2]
[404752558,1770509432157,-489.0,0.00023267,2]
[404752559,1770509432168,-3320.76644445,0.00023267,2]
[404752560,1770509432179,-973.0,0.00023267,2]
[404752576,1770509440392,-217.23355555,0.00023267,2]
[404752578,1770509440402,-136.36644446,0.00023621,2]
[404753108,1770509445642,-13.63355554,0.00023621,2]
[404753110,1770509445651,-194.17245141,0.00023739,2]
[404753112,1770509445661,-5600.19399305,0.00023739,2]
[404753115,1770509445685,-1356.24667108,0.00023739,2]
[404753117,1770509445698,-1708.0070859,0.00023739,2]
[404753171,1770509446232,-893.66091881,0.00023739,2]
[404753173,1770509446242,-172.37950591,0.00023965,2]
[404753191,1770509446378,-205.518517,0.00024367,2]
[404753193,1770509446388,-177.0,0.00025621,2]
[404753195,1770509446398,-204.0,0.00027621,2]
[404753197,1770509446407,-741.63626124,0.00027999,2]
[404753199,1770509446417,-600.0,0.00028228,30]
[404753201,1770509446426,-870.9000236,0.00028573,2]
[404753203,1770509446437,-227.23198316,0.00029621,2]
[404753205,1770509446446,-672.55192641,0.00029682,10]
[404753261,1770509447059,-311.44807359,0.00029682,10]
[404753263,1770509447068,-233.91840698,0.00031,120]
[404753265,1770509447077,-183.53889275,0.00031,120]
[404753267,1770509447087,-199.61462151,0.00031,120]
[404753270,1770509447100,-205.03430026,0.00031,120]
[404753272,1770509447110,-177.1572278,0.00031,120]
[404753274,1770509447119,-227.86094188,0.00031,120]
[404753276,1770509447128,-185.95017997,0.00031,120]
[404753277,1770509447138,-224.81849868,0.00031,120]
[404753279,1770509447148,-720.0,0.00031051,30]
[404753281,1770509447157,-444.74354321,0.00031351,2]
[404753284,1770509447170,-60.79465779,0.00031351,2]
[404753286,1770509447179,-205.03430026,0.000319,120]
[404753288,1770509447189,-177.1572278,0.000319,120]
[404753290,1770509447198,-185.95017997,0.000319,120]
[404753292,1770509447207,-224.81849868,0.000319,120]
[404753294,1770509447217,-143.1451355,0.000332,117]
[404754252,1770509489969,364.24249807,0.00013273,2]
[404754254,1770509528220,500.78529919,0.00013699,2]
[404754255,1770509528539,160.62244729,0.00013273,2]
[404754256,1770509586290,500.0,0.00013699,2]
[404754257,1770509586323,578.88185038,0.00013699,2]
[404754258,1770509586610,500.0,0.00013699,2]
[404754259,1770509586650,501.47685307,0.00013699,2]
[404754260,1770509586679,503.29938304,0.00014247,2]
[404754261,1770509587102,500.0,0.00013273,2]
[404754262,1770509587184,500.0,0.00013699,2]
[404754263,1770509587247,1000.0,0.00014247,2]
[404754264,1770509587318,501.07051364,0.00014795,2]
[404754265,1770509589615,500.0,0.00013273,2]
[404754266,1770509589754,500.43231156,0.00013699,2]
[404754267,1770509589970,336.60853574,0.00013273,2]
[404754268,1770509590354,500.0,0.00013699,2]
[404754269,1770509590411,1000.0,0.00014247,2]
[404754270,1770509590465,1500.0,0.00014795,2]
[404754271,1770509590500,525.99675699,0.00013699,2]
[404754272,1770509590664,166.90476181,0.00013699,2]
[404754273,1770509591441,500.0,0.00013273,2]
[404754274,1770509591517,300.0,0.00013673,2]
[404754275,1770509591575,814.96811641,0.00014768,2]
[404754276,1770509592427,500.0,0.00013699,2]
[404754277,1770509592455,600.0,0.00014221,2]
[404754278,1770509592483,1000.0,0.00014247,2]
[404754279,1770509592537,1500.0,0.00014795,2]
[404754280,1770509593111,503.08102239,0.00013699,2]
[404754281,1770509593842,482.46412445,0.00013273,2]
[404754282,1770509594284,500.0,0.00013273,2]
[404754283,1770509594338,1000.0,0.00013821,2]
[404754284,1770509594384,1500.0,0.00014368,2]
[404754285,1770509594443,2000.0,0.00014916,2]
[404754286,1770509594726,500.90548219,0.00013699,2]
[404754287,1770509598194,500.0,0.00013273,2]
[404754288,1770509598284,501.21055458,0.00013699,2]
[404754289,1770509598537,500.0,0.00013273,2]
[404754290,1770509600869,500.0,0.00013699,2]
[404754291,1770509600931,1000.0,0.00014247,2]
[404754292,1770509600984,502.49662358,0.00014795,2]
[404754293,1770509601558,160.13948933,0.00013699,2]
[404754294,1770509602018,500.0,0.00013699,2]
[404754295,1770509602073,503.26043127,0.00014247,2]
[404754296,1770509602415,500.68304287,0.00013699,2]
[404754297,1770509603918,501.47890403,0.00013699,2]
[404754298,1770509603953,396.90119587,0.00013273,2]
[404754299,1770509605341,545.02495288,0.00013699,2]
[404754300,1770509605558,500.93754052,0.00013273,2]
[404754301,1770509605586,500.64193763,0.00013699,2]
[404754302,1770509605699,500.0,0.00013273,2]
[404754303,1770509605753,1000.0,0.00013821,2]
[404754304,1770509605902,1500.0,0.00014368,2]
[404754305,1770509605965,2000.0,0.00014916,2]
[404754306,1770509646262,238.46971449,0.00014247,2]
[404754307,1770509646363,500.0,0.00013699,2]
[404754308,1770509646431,500.58253669,0.00013273,2]
[404754311,1770509707558,500.0,0.00013699,2]
[404754312,1770509707611,1000.0,0.00014247,2]
[404754313,1770509707663,1202.32715655,0.00014795,2]
[404754314,1770509709908,500.55644104,0.00013273,2]
[404754315,1770509710941,500.0,0.00013699,2]
[404754316,1770509710971,501.69807982,0.00013699,2]
[404754317,1770509711014,1000.5791948,0.00014247,2]
[404754318,1770509711044,500.0,0.00013699,2]
[404754319,1770509711072,1000.0,0.00014247,2]
[404754320,1770509711115,825.6354297,0.00014795,2]
[404754321,1770509713626,411.14838567,0.00013699,2]
[404754322,1770509713842,500.0,0.00013273,2]
[404754323,1770509713891,1000.0,0.00013821,2]
[404754324,1770509713951,1500.0,0.00014368,2]
[404754325,1770509714003,2000.0,0.00014916,2]
[404754326,1770509714057,918.55711365,0.00015464,2]
[404754327,1770509714947,161.05870757,0.00013699,2]
[404754328,1770509723200,500.0,0.00013699,2]
[404754329,1770509723248,1292.52981682,0.00014795,2]
[404754330,1770509723299,1000.0,0.00014247,2]
[404754331,1770509724942,500.0,0.00013699,2]
[404754332,1770509724994,1500.0,0.00014795,2]
[404754333,1770509725063,1000.0,0.00014247,2]
[404754334,1770509726674,500.0,0.00013273,2]
[404754335,1770509726729,1000.0,0.00013821,2]
[404754336,1770509726928,1500.0,0.00014368,2]
[404754337,1770509726967,2000.0,0.00014916,2]
[404754338,1770509734526,500.0,0.00013273,2]
[404754339,1770509734573,1000.0,0.00013821,2]
[404754340,1770509734618,760.32577234,0.00014368,2]
[404754341,1770509766605,500.0,0.00013699,2]
[404754342,1770509766659,1000.0,0.00014247,2]
[404754343,1770509766714,1646.5145419,0.00014795,2]
[404754344,1770509823988,200.0,0.00013699,2]
[404754345,1770509824015,496.43208564,0.00013273,2]
[404754347,1770509827052,500.0,0.00013699,2]
[404754348,1770509827114,500.51974168,0.00014247,2]
[404754349,1770509827152,500.0,0.00013273,2]
[404754350,1770509827196,1000.0,0.00013821,2]
[404754351,1770509827259,1006.9962195,0.00014368,2]
[404754352,1770509842615,500.0,0.00013699,2]
[404754353,1770509842655,1000.0,0.00014247,2]
[404754354,1770509842702,1500.0,0.00014795,2]
[404754355,1770509844472,500.0,0.00013273,2]
[404754356,1770509844527,1000.0,0.00013821,2]
[404754357,1770509844575,1500.0,0.00014368,2]
[404754358,1770509844631,2063.58171927,0.00014916,2]
[404754360,1770509943372,581.49541687,0.00013699,2]
[404754361,1770509943417,452.87235333,0.00013273,2]
[404754362,1770509945163,500.0,0.00013699,2]
[404754363,1770509945216,530.16327373,0.00014247,2]
[404754364,1770509945332,500.0,0.00013699,2]
[404754365,1770509945385,503.55924812,0.00014247,2]
[404754366,1770509945994,500.0,0.00013699,2]
[404754367,1770509946042,1002.78626778,0.00014247,2]
[404754368,1770509946187,500.0,0.00013699,2]
[404754369,1770509946245,500.0,0.00013699,2]
[404754370,1770509946274,536.69780885,0.00014247,2]
[404754371,1770509946302,501.3003251,0.00014247,2]
[404754372,1770509961478,500.0,0.00013699,2]
[404754373,1770509961505,1000.0,0.00014247,2]
[404754374,1770509961532,1500.0,0.00014795,2]
[404754375,1770510005070,327.28,0.00013699,2]
[404754378,1770510063810,500.0,0.00013699,2]
[404754379,1770510063842,616.19990478,0.00014795,2]
[404754380,1770510063869,500.0,0.00013699,2]
[404754381,1770510063997,1000.0,0.00014247,2]
[404754382,1770510064033,500.0,0.00013699,2]
[404754383,1770510064063,919.15523469,0.00014247,2]
[404754384,1770510064100,1000.0,0.00014247,2]
[404754385,1770510064127,1500.0,0.00014795,2]
[404754386,1770510064158,500.0,0.00013699,2]
[404754387,1770510064197,568.16448388,0.00014247,2]
[404754388,1770510065025,500.0,0.00013699,2]
[404754389,1770510065057,413.21960917,0.00014247,2]
[404754390,1770510067051,500.0,0.00013273,2]
[404754391,1770510067083,1007.09333172,0.00013821,2]
[404754392,1770510067894,500.0,0.00013699,2]
[404754393,1770510067922,556.85575586,0.00014247,2]
[404754394,1770510081687,500.0,0.00013699,2]
[404754395,1770510081733,1000.0,0.00014247,2]
[404754396,1770510081789,1500.0,0.00014795,2]
[404754397,1770510123694,448.42218987,0.00013699,2]
[404754398,1770510123965,500.0,0.00013273,2]
[404754399,1770510124002,1000.0,0.00013821,2]
[404754400,1770510124031,946.75001853,0.00014368,2]
[404754401,1770510124412,500.0,0.00013273,2]
[404754402,1770510124467,1000.0,0.00013821,2]
[404754403,1770510124524,807.07897942,0.00014368,2]
[404754404,1770510124784,282.51127227,0.00013699,2]
[404754405,1770510125766,500.0,0.00013273,2]
[404754406,1770510160774,200.0,0.00013699,2]
[404754407,1770510184381,629.69540114,0.00013699,2]
[404754408,1770510184412,500.0,0.00013699,2]
[404754409,1770510184467,500.62336117,0.00014247,2]
[404754410,1770510187563,500.0,0.00013273,2]
[404754411,1770510189158,491.16064446,0.00013273,2]
[404754412,1770510196549,217.40865874,0.00013273,2]
[404754413,1770510200607,500.0,0.00013699,2]
[404754414,1770510200671,1000.0,0.00014247,2]
[404754415,1770510200725,1566.59202503,0.00014795,2]
[404754416,1770510303099,514.12636587,0.00013699,2]
[404754417,1770510303489,500.0,0.00013699,2]
[404754418,1770510303549,1000.0,0.00014247,2]
[404754419,1770510303603,214.61377282,0.00014795,2]
[404754420,1770510305608,500.0,0.00013699,2]
[404754421,1770510305639,702.83775976,0.00014247,2]
[404754422,1770510308955,500.0,0.00013699,2]
[404754423,1770510308991,250.0,0.00014247,2]
[404754424,1770510309042,228.93136157,0.00014795,2]
[404754425,1770510309071,500.77390481,0.00014247,2]
[404754426,1770510309110,150.0,0.00013699,2]
[404754429,1770510368283,500.0,0.00013699,2]
[404754430,1770510368320,1003.65017484,0.00014795,2]
[404754431,1770510368375,1000.0,0.00014247,2]
[404754432,1770510371336,500.0,0.00013273,2]
[404754433,1770510371398,879.88429686,0.00013821,2]
[404754434,1770510371936,500.0,0.00013273,2]
[404754435,1770510371964,1587.64930692,0.00014368,2]
[404754436,1770510371998,1000.0,0.00013821,2]
[404754437,1770510373541,1000.0,0.00014247,2]
[404754438,1770510373601,500.0,0.00013699,2]
[404754439,1770510373657,1500.0,0.00014795,2]
[404754440,1770510376508,500.0,0.00013699,2]
[404754441,1770510376577,1027.96138248,0.00014247,2]
[404754443,1770510420692,5000.0,0.000159,2]
[404754444,1770510423904,500.85223757,0.00014247,2]
[404754445,1770510423974,500.0,0.00013273,2]
[404754446,1770510424031,1000.0,0.00013821,2]
[404754447,1770510424083,500.0,0.00013699,2]